[Event "*** SCC Grand Prix: Titled Tuesday Blitz"]
[Site "Chess.com"]
[Date "2020.06.02"]
[Round "4"]
[White "LisikValera"]
[Black "Alexander_Donchenko"]
[Result "0-1"]
[WhiteElo "2492"]
[BlackElo "2697"]
[TimeControl "180+1"]
[EndTime "10:37:40 PDT"]
[Termination "Alexander_Donchenko won by resignation"]

1. d4 {[%clk 0:03:00.9]} 1... d5 {[%clk 0:02:59.4]} 2. Bf4 {[%clk 0:02:59.8]}
2... c5 {[%clk 0:02:59.4]} 3. e3 {[%clk 0:03:00.1]} 3... cxd4 {[%clk 0:02:59.9]}
4. exd4 {[%clk 0:02:59.7]} 4... Nc6 {[%clk 0:03:00.5]} 5. c3 {[%clk 0:03:00]}
5... Bf5 {[%clk 0:03:00.6]} 6. Bd3 {[%clk 0:02:57.9]} 6... Bxd3 {[%clk
0:03:00.4]} 7. Qxd3 {[%clk 0:02:57.7]} 7... e6 {[%clk 0:03:01]} 8. Nd2 {[%clk
0:02:57.4]} 8... Bd6 {[%clk 0:03:00.9]} 9. Bg3 {[%clk 0:02:57.5]} 9... Nf6
{[%clk 0:03:00.8]} 10. Ngf3 {[%clk 0:02:57.1]} 10... O-O {[%clk 0:02:59.9]} 11.
Bh4 {[%clk 0:02:56.5]} 11... Rb8 {[%clk 0:02:58.1]} 12. O-O {[%clk 0:02:55]}
12... Be7 {[%clk 0:02:56.1]} 13. Rfe1 {[%clk 0:02:54.4]} 13... Ne8 {[%clk
0:02:54.6]} 14. Bg3 {[%clk 0:02:53]} 14... Bd6 {[%clk 0:02:54.7]} 15. Re2 {[%clk
0:02:43.9]} 15... Bxg3 {[%clk 0:02:54.1]} 16. hxg3 {[%clk 0:02:44.7]} 16... Nd6
{[%clk 0:02:54.5]} 17. Rae1 {[%clk 0:02:42.9]} 17... b5 {[%clk 0:02:54.6]} 18.
Nb3 {[%clk 0:02:41.2]} 18... b4 {[%clk 0:02:54.4]} 19. Nc5 {[%clk 0:02:38.3]}
19... bxc3 {[%clk 0:02:54.6]} 20. Qxc3 {[%clk 0:02:37.6]} 20... Rb6 {[%clk
0:02:42]} 21. a3 {[%clk 0:02:23.1]} 21... Nc4 {[%clk 0:02:36.9]} 22. b4 {[%clk
0:02:13.4]} 22... a5 {[%clk 0:02:33.5]} 23. Rb1 {[%clk 0:01:47.7]} 23... axb4
{[%clk 0:02:32.6]} 24. axb4 {[%clk 0:01:48.6]} 24... Qe7 {[%clk 0:02:24.5]} 25.
Ra2 {[%clk 0:01:37.6]} 25... Rfb8 {[%clk 0:02:22.9]} 26. Ra4 {[%clk 0:01:37.7]}
26... h6 {[%clk 0:02:18.5]} 27. Nd2 {[%clk 0:01:32.5]} 27... Nd6 {[%clk
0:02:09.7]} 28. Na6 {[%clk 0:01:21.5]} 28... Ra8 {[%clk 0:01:59.9]} 29. Rba1
{[%clk 0:01:21.4]} 29... Nb5 {[%clk 0:01:54.4]} 30. Qc5 {[%clk 0:01:21.2]} 30...
Qb7 {[%clk 0:01:54.3]} 31. Nb3 {[%clk 0:01:14.8]} 31... Rbxa6 {[%clk 0:01:52.1]}
32. Rxa6 {[%clk 0:00:57.5]} 32... Rxa6 {[%clk 0:01:53]} 33. Qc1 {[%clk
0:00:57.8]} 33... Rxa1 {[%clk 0:01:45.5]} 34. Qxa1 {[%clk 0:00:58.7]} 34... Nxb4
{[%clk 0:01:44.4]} 35. Qa5 {[%clk 0:00:57.9]} 35... Nc6 {[%clk 0:01:43.6]} 36.
Qa4 {[%clk 0:00:57.6]} 36... Qb6 {[%clk 0:01:41]} 37. Qa8+ {[%clk 0:00:55.4]}
37... Kh7 {[%clk 0:01:40.9]} 38. Qe8 {[%clk 0:00:55.3]} 38... Nd6 {[%clk
0:01:34.8]} 39. Qd7 {[%clk 0:00:51.7]} 39... Qxb3 {[%clk 0:01:34.5]} 0-1

[Event "*** SCC Grand Prix: Titled Tuesday Blitz"]
[Site "Chess.com"]
[Date "2020.06.02"]
[Round "4"]
[White "kintoho"]
[Black "Tayson_7"]
[Result "0-1"]
[WhiteElo "2351"]
[BlackElo "2599"]
[TimeControl "180+1"]
[EndTime "10:37:42 PDT"]
[Termination "Tayson_7 won by checkmate"]

1. e4 {[%clk 0:03:00.9]} 1... e5 {[%clk 0:02:59.7]} 2. Nf3 {[%clk 0:03:00.2]}
2... Nc6 {[%clk 0:03:00.1]} 3. Nc3 {[%clk 0:02:59.6]} 3... g6 {[%clk 0:02:57.2]}
4. d4 {[%clk 0:02:58.3]} 4... exd4 {[%clk 0:02:58.1]} 5. Nxd4 {[%clk 0:02:58.4]}
5... Bg7 {[%clk 0:02:58.7]} 6. Be3 {[%clk 0:02:58.2]} 6... Nge7 {[%clk 0:02:51]}
7. Qd2 {[%clk 0:02:55.8]} 7... d6 {[%clk 0:02:49.1]} 8. O-O-O {[%clk 0:02:55.6]}
8... Be6 {[%clk 0:02:49.4]} 9. Nxe6 {[%clk 0:02:53.2]} 9... fxe6 {[%clk
0:02:49.4]} 10. Bc4 {[%clk 0:02:53.2]} 10... Qd7 {[%clk 0:02:47.3]} 11. Bh6
{[%clk 0:02:45.8]} 11... Bxh6 {[%clk 0:02:37.8]} 12. Qxh6 {[%clk 0:02:45.7]}
12... O-O-O {[%clk 0:02:38.3]} 13. Qh3 {[%clk 0:02:45.5]} 13... Kb8 {[%clk
0:02:30]} 14. Bxe6 {[%clk 0:02:44.7]} 14... Qe8 {[%clk 0:02:28.7]} 15. f4 {[%clk
0:02:43.9]} 15... Qf8 {[%clk 0:02:26.3]} 16. g3 {[%clk 0:02:43.2]} 16... Qg7
{[%clk 0:01:53.4]} 17. Qg2 {[%clk 0:02:33.1]} 17... h5 {[%clk 0:01:37.1]} 18. h4
{[%clk 0:02:32.4]} 18... a6 {[%clk 0:01:35.4]} 19. Rd2 {[%clk 0:02:27.2]} 19...
Nc8 {[%clk 0:01:32.7]} 20. Rhd1 {[%clk 0:02:21.1]} 20... Rhe8 {[%clk 0:01:27.9]}
21. Bd5 {[%clk 0:02:20.3]} 21... Na5 {[%clk 0:01:24.7]} 22. a3 {[%clk
0:02:15.8]} 22... Nb6 {[%clk 0:01:23.1]} 23. Ba2 {[%clk 0:02:04.1]} 23... Nac4
{[%clk 0:01:18.7]} 24. Rd3 {[%clk 0:02:00.9]} 24... Nxb2 {[%clk 0:01:14.3]} 25.
Kxb2 {[%clk 0:01:54.6]} 25... Na4+ {[%clk 0:01:14]} 26. Kb3 {[%clk 0:01:55]}
26... Nc5+ {[%clk 0:01:12.8]} 27. Kb2 {[%clk 0:01:55.1]} 27... Na4+ {[%clk
0:01:09.5]} 28. Kb3 {[%clk 0:01:50.1]} 28... Nc5+ {[%clk 0:01:09.5]} 29. Kb2
{[%clk 0:01:49.8]} 29... Rxe4 {[%clk 0:00:47.5]} 30. Kb1 {[%clk 0:01:34.2]}
30... Re7 {[%clk 0:00:47.3]} 31. Nd5 {[%clk 0:01:30.3]} 31... Nxd3 {[%clk
0:00:43.7]} 32. Nxe7 {[%clk 0:01:26.1]} 32... Qb2# {[%clk 0:00:42.5]} 0-1

[Event "*** SCC Grand Prix: Titled Tuesday Blitz"]
[Site "Chess.com"]
[Date "2020.06.02"]
[Round "4"]
[White "ZverevLev"]
[Black "wild_cat99"]
[Result "0-1"]
[WhiteElo "2233"]
[BlackElo "2576"]
[TimeControl "180+1"]
[EndTime "10:37:43 PDT"]
[Termination "wild_cat99 won by checkmate"]

1. e4 {[%clk 0:03:00.9]} 1... c5 {[%clk 0:02:59.6]} 2. Nf3 {[%clk 0:02:58.2]}
2... d6 {[%clk 0:02:59.3]} 3. d4 {[%clk 0:02:55.3]} 3... cxd4 {[%clk 0:03:00.2]}
4. Nxd4 {[%clk 0:02:54.6]} 4... Nf6 {[%clk 0:03:00.3]} 5. Nc3 {[%clk 0:02:50.8]}
5... a6 {[%clk 0:03:00.7]} 6. Bg5 {[%clk 0:02:48.1]} 6... Nbd7 {[%clk
0:03:00.4]} 7. f4 {[%clk 0:02:46.7]} 7... Qc7 {[%clk 0:02:59.9]} 8. Qf3 {[%clk
0:02:39.7]} 8... h6 {[%clk 0:02:59.1]} 9. Bxf6 {[%clk 0:02:38]} 9... Nxf6 {[%clk
0:03:00]} 10. f5 {[%clk 0:02:33.9]} 10... Qc5 {[%clk 0:02:48]} 11. O-O-O {[%clk
0:02:29.7]} 11... g5 {[%clk 0:02:47]} 12. fxg6 {[%clk 0:02:27.2]} 12... Bg4
{[%clk 0:02:47.2]} 13. gxf7+ {[%clk 0:02:24.5]} 13... Kxf7 {[%clk 0:02:48.1]}
14. Qd3 {[%clk 0:02:24.1]} 14... Bxd1 {[%clk 0:02:48.1]} 15. Nxd1 {[%clk
0:02:24.5]} 15... Bg7 {[%clk 0:02:45.6]} 16. g3 {[%clk 0:02:20.7]} 16... Nxe4
{[%clk 0:02:39.4]} 17. Qxe4 {[%clk 0:02:13]} 17... Qxd4 {[%clk 0:02:39.3]} 18.
Bc4+ {[%clk 0:02:10.8]} 18... Ke8 {[%clk 0:02:38.5]} 19. Qxb7 {[%clk 0:02:06]}
19... Qa7 {[%clk 0:02:38.3]} 20. Qc6+ {[%clk 0:02:05.2]} 20... Kd8 {[%clk
0:02:35.4]} 21. Be6 {[%clk 0:02:01]} 21... Rf8 {[%clk 0:02:27.1]} 22. Kb1 {[%clk
0:01:47.8]} 22... a5 {[%clk 0:02:17.6]} 23. Ne3 {[%clk 0:01:36.9]} 23... Rb8
{[%clk 0:02:14.4]} 24. Nc4 {[%clk 0:01:30.2]} 24... Qb7 {[%clk 0:02:13.9]} 25.
Qxb7 {[%clk 0:01:22.6]} 25... Rxb7 {[%clk 0:02:14.8]} 26. Nxa5 {[%clk
0:01:14.6]} 26... Rxb2+ {[%clk 0:02:13.4]} 27. Kc1 {[%clk 0:01:13.2]} 27... Rb5
{[%clk 0:01:59.9]} 28. Nc6+ {[%clk 0:01:10.1]} 28... Kc7 {[%clk 0:01:57.9]} 29.
Nxe7 {[%clk 0:01:09.2]} 29... Re5 {[%clk 0:01:58.1]} 30. Ng6 {[%clk 0:00:56.6]}
30... Rxe6 {[%clk 0:01:57.7]} 31. Nxf8 {[%clk 0:00:55.8]} 31... Bxf8 {[%clk
0:01:58.6]} 32. Rf1 {[%clk 0:00:54.6]} 32... Be7 {[%clk 0:01:58.1]} 33. Rf7
{[%clk 0:00:51.7]} 33... Kc6 {[%clk 0:01:53.8]} 34. h4 {[%clk 0:00:49.8]} 34...
Bf6 {[%clk 0:01:53.5]} 35. Rh7 {[%clk 0:00:40.5]} 35... Be5 {[%clk 0:01:53.1]}
36. g4 {[%clk 0:00:36.9]} 36... Bc3 {[%clk 0:01:52.5]} 37. Kb1 {[%clk
0:00:28.2]} 37... Re1# {[%clk 0:01:52.1]} 0-1

[Event "*** SCC Grand Prix: Titled Tuesday Blitz"]
[Site "Chess.com"]
[Date "2020.06.02"]
[Round "4"]
[White "Kezin_Roman"]
[Black "Mizner"]
[Result "1-0"]
[WhiteElo "2693"]
[BlackElo "2492"]
[TimeControl "180+1"]
[EndTime "10:37:49 PDT"]
[Termination "Kezin_Roman won on time"]

1. d4 {[%clk 0:03:00.7]} 1... d5 {[%clk 0:02:59.7]} 2. c4 {[%clk 0:03:01.1]}
2... e6 {[%clk 0:03:00.1]} 3. Nf3 {[%clk 0:03:01.6]} 3... Nf6 {[%clk 0:02:59.9]}
4. g3 {[%clk 0:03:02.3]} 4... Be7 {[%clk 0:02:53.7]} 5. Bg2 {[%clk 0:03:02.7]}
5... O-O {[%clk 0:02:53.8]} 6. O-O {[%clk 0:03:03.5]} 6... dxc4 {[%clk
0:02:54.1]} 7. Qc2 {[%clk 0:03:04.2]} 7... a6 {[%clk 0:02:49.7]} 8. a4 {[%clk
0:03:04.5]} 8... Nc6 {[%clk 0:02:44.5]} 9. Qxc4 {[%clk 0:03:03.7]} 9... a5
{[%clk 0:02:43.1]} 10. Nc3 {[%clk 0:03:01.1]} 10... Nb4 {[%clk 0:02:39.7]} 11.
Rd1 {[%clk 0:03:01.1]} 11... b6 {[%clk 0:02:38.7]} 12. Ne5 {[%clk 0:02:58.1]}
12... Ba6 {[%clk 0:02:35.4]} 13. Qb3 {[%clk 0:02:58.3]} 13... Rb8 {[%clk
0:02:29.6]} 14. Bf4 {[%clk 0:02:46.9]} 14... h6 {[%clk 0:02:16.5]} 15. Rac1
{[%clk 0:02:46.8]} 15... Bd6 {[%clk 0:02:11.4]} 16. e4 {[%clk 0:02:36]} 16...
Qe7 {[%clk 0:02:07.5]} 17. Nb5 {[%clk 0:02:31.9]} 17... Bb7 {[%clk 0:01:47]} 18.
Re1 {[%clk 0:02:20.7]} 18... Rfd8 {[%clk 0:01:41.9]} 19. Rcd1 {[%clk 0:02:13.2]}
19... Qe8 {[%clk 0:01:23.4]} 20. Nxf7 {[%clk 0:02:11.8]} 20... Qxf7 {[%clk
0:01:08.1]} 21. e5 {[%clk 0:02:12.2]} 21... Bxg2 {[%clk 0:00:29.9]} 22. Kxg2
{[%clk 0:02:13.1]} 22... Nfd5 {[%clk 0:00:28.2]} 23. exd6 {[%clk 0:02:13.1]}
23... Nxf4+ {[%clk 0:00:24.7]} 24. gxf4 {[%clk 0:02:14]} 24... c6 {[%clk
0:00:14.1]} 25. Nc7 {[%clk 0:02:09.3]} 25... Rxd6 {[%clk 0:00:14]} 26. Nxe6
{[%clk 0:01:55.2]} 26... Re8 {[%clk 0:00:12.4]} 27. Ng5 {[%clk 0:01:55.4]} 1-0

[Event "*** SCC Grand Prix: Titled Tuesday Blitz"]
[Site "Chess.com"]
[Date "2020.06.02"]
[Round "4"]
[White "MatyChess1"]
[Black "chenxiaoyuer"]
[Result "0-1"]
[WhiteElo "2578"]
[BlackElo "2330"]
[TimeControl "180+1"]
[EndTime "10:37:49 PDT"]
[Termination "chenxiaoyuer won by resignation"]

1. e4 {[%clk 0:03:00.9]} 1... c5 {[%clk 0:02:59.8]} 2. Nf3 {[%clk 0:03:00.8]}
2... d6 {[%clk 0:02:59]} 3. d4 {[%clk 0:03:00.9]} 3... cxd4 {[%clk 0:02:59]} 4.
Nxd4 {[%clk 0:03:01.8]} 4... Nf6 {[%clk 0:02:58.8]} 5. Nc3 {[%clk 0:03:02.7]}
5... Nc6 {[%clk 0:02:57.9]} 6. Be2 {[%clk 0:03:02.1]} 6... e5 {[%clk 0:02:57.4]}
7. Nf3 {[%clk 0:03:02.5]} 7... Be7 {[%clk 0:02:56.1]} 8. O-O {[%clk 0:03:03.1]}
8... O-O {[%clk 0:02:56.1]} 9. Re1 {[%clk 0:03:03.5]} 9... h6 {[%clk 0:02:52.7]}
10. h3 {[%clk 0:03:03.2]} 10... Be6 {[%clk 0:02:52.1]} 11. Bf1 {[%clk
0:03:03.4]} 11... Rc8 {[%clk 0:02:51.9]} 12. Nd5 {[%clk 0:03:02.9]} 12... Bxd5
{[%clk 0:02:42.1]} 13. exd5 {[%clk 0:03:03.8]} 13... Nb8 {[%clk 0:02:34.8]} 14.
c4 {[%clk 0:02:58.7]} 14... Nfd7 {[%clk 0:02:34.1]} 15. b4 {[%clk 0:02:51.3]}
15... b6 {[%clk 0:02:20]} 16. Rb1 {[%clk 0:02:27.9]} 16... f5 {[%clk 0:02:17.8]}
17. g4 {[%clk 0:02:04.5]} 17... fxg4 {[%clk 0:02:06.6]} 18. hxg4 {[%clk
0:02:05.4]} 18... Qe8 {[%clk 0:01:39.4]} 19. Bd3 {[%clk 0:00:55.6]} 19... Nf6
{[%clk 0:01:38.5]} 20. Nd2 {[%clk 0:00:33.5]} 20... Qf7 {[%clk 0:01:27.6]} 21.
Qe2 {[%clk 0:00:25.2]} 21... Nxg4 {[%clk 0:01:20.4]} 22. Qxg4 {[%clk 0:00:20.5]}
22... Qxf2+ {[%clk 0:01:19.2]} 23. Kh1 {[%clk 0:00:20.9]} 23... Qxe1+ {[%clk
0:01:19]} 24. Kg2 {[%clk 0:00:20.3]} 24... Rf2+ {[%clk 0:01:18.2]} 25. Kh3
{[%clk 0:00:20.2]} 25... Qh1+ {[%clk 0:01:17.9]} 0-1

[Event "*** SCC Grand Prix: Titled Tuesday Blitz"]
[Site "Chess.com"]
[Date "2020.06.02"]
[Round "4"]
[White "DenisQ"]
[Black "hongnhung1234"]
[Result "1-0"]
[WhiteElo "2570"]
[BlackElo "2222"]
[TimeControl "180+1"]
[EndTime "10:37:55 PDT"]
[Termination "DenisQ won by checkmate"]

1. Nf3 {[%clk 0:03:00.9]} 1... f5 {[%clk 0:02:59.7]} 2. g3 {[%clk 0:02:58.9]}
2... Nf6 {[%clk 0:02:59.1]} 3. Bg2 {[%clk 0:02:58.9]} 3... g6 {[%clk 0:02:59.5]}
4. O-O {[%clk 0:02:58.8]} 4... Bg7 {[%clk 0:02:59.6]} 5. c4 {[%clk 0:02:59]}
5... O-O {[%clk 0:02:59.9]} 6. Nc3 {[%clk 0:02:58.8]} 6... d6 {[%clk 0:03:00.3]}
7. d3 {[%clk 0:02:58.6]} 7... e5 {[%clk 0:02:59.9]} 8. Rb1 {[%clk 0:02:57.3]}
8... Nc6 {[%clk 0:02:58.6]} 9. b4 {[%clk 0:02:56.1]} 9... h6 {[%clk 0:02:54.4]}
10. b5 {[%clk 0:02:55.8]} 10... Ne7 {[%clk 0:02:54]} 11. c5 {[%clk 0:02:56]}
11... g5 {[%clk 0:02:51]} 12. Qb3+ {[%clk 0:02:55]} 12... Kh7 {[%clk 0:02:45.3]}
13. a4 {[%clk 0:02:52.1]} 13... f4 {[%clk 0:02:42.8]} 14. Ba3 {[%clk 0:02:49.8]}
14... g4 {[%clk 0:02:32.8]} 15. cxd6 {[%clk 0:02:48.3]} 15... cxd6 {[%clk
0:02:31.1]} 16. Nh4 {[%clk 0:02:45.1]} 16... Nf5 {[%clk 0:02:15.8]} 17. Nxf5
{[%clk 0:02:37.4]} 17... Bxf5 {[%clk 0:02:16.7]} 18. Bxb7 {[%clk 0:02:37.3]}
18... Rb8 {[%clk 0:02:01]} 19. Bg2 {[%clk 0:02:35.7]} 19... f3 {[%clk
0:01:59.7]} 20. exf3 {[%clk 0:02:32]} 20... Bxd3 {[%clk 0:01:57.6]} 21. fxg4
{[%clk 0:02:24.5]} 21... Bxf1 {[%clk 0:01:53.5]} 22. Rxf1 {[%clk 0:02:22.6]}
22... Nxg4 {[%clk 0:01:50.2]} 23. Ne4 {[%clk 0:02:20.2]} 23... d5 {[%clk
0:01:29]} 24. Bxf8 {[%clk 0:02:17.8]} 24... Bxf8 {[%clk 0:01:29.3]} 25. Rd1
{[%clk 0:02:10.5]} 25... d4 {[%clk 0:01:17.3]} 26. Qf7+ {[%clk 0:02:06.8]} 26...
Bg7 {[%clk 0:01:17.4]} 27. Qf5+ {[%clk 0:02:06.2]} 27... Kh8 {[%clk 0:01:16.2]}
28. Qxg4 {[%clk 0:02:06.1]} 28... Qa5 {[%clk 0:01:14.4]} 29. Nc5 {[%clk
0:01:42.4]} 29... Re8 {[%clk 0:00:55.2]} 30. Ne6 {[%clk 0:01:39]} 30... Bf6
{[%clk 0:00:49.9]} 31. Be4 {[%clk 0:01:35]} 31... Qxa4 {[%clk 0:00:42.8]} 32.
Qg6 {[%clk 0:01:28.8]} 32... Qxd1+ {[%clk 0:00:40.8]} 33. Kg2 {[%clk 0:01:28.7]}
33... Re7 {[%clk 0:00:39.9]} 34. Qxf6+ {[%clk 0:01:27.9]} 34... Kg8 {[%clk
0:00:39.7]} 35. Qxe7 {[%clk 0:01:24]} 35... Qg4 {[%clk 0:00:38.3]} 36. Qh7#
{[%clk 0:01:23.7]} 1-0

[Event "*** SCC Grand Prix: Titled Tuesday Blitz"]
[Site "Chess.com"]
[Date "2020.06.02"]
[Round "4"]
[White "tteshan"]
[Black "Chesstrainer1"]
[Result "1-0"]
[WhiteElo "2234"]
[BlackElo "2413"]
[TimeControl "180+1"]
[EndTime "10:37:56 PDT"]
[Termination "tteshan won by resignation"]

1. e4 {[%clk 0:03:00.9]} 1... c5 {[%clk 0:02:59.4]} 2. c3 {[%clk 0:03:00.9]}
2... Nf6 {[%clk 0:02:58]} 3. e5 {[%clk 0:03:00.7]} 3... Nd5 {[%clk 0:02:58.2]}
4. Nf3 {[%clk 0:03:01.2]} 4... e6 {[%clk 0:02:56.8]} 5. Bc4 {[%clk 0:03:00.7]}
5... Nb6 {[%clk 0:02:49.1]} 6. Bb3 {[%clk 0:03:00.9]} 6... c4 {[%clk 0:02:46.9]}
7. Bc2 {[%clk 0:03:01.2]} 7... Nc6 {[%clk 0:02:46.6]} 8. O-O {[%clk 0:03:00.2]}
8... g5 {[%clk 0:02:41.5]} 9. Re1 {[%clk 0:02:38.5]} 9... g4 {[%clk 0:02:34.4]}
10. Nd4 {[%clk 0:02:38.8]} 10... h5 {[%clk 0:02:29.8]} 11. d3 {[%clk 0:02:35.1]}
11... Bg7 {[%clk 0:02:06.5]} 12. Bf4 {[%clk 0:02:27.7]} 12... Nxd4 {[%clk
0:01:57.1]} 13. cxd4 {[%clk 0:02:27.4]} 13... Nd5 {[%clk 0:01:56.9]} 14. Bd2
{[%clk 0:02:15.9]} 14... cxd3 {[%clk 0:01:53.9]} 15. Bxd3 {[%clk 0:02:16.8]}
15... b6 {[%clk 0:01:35.4]} 16. Na3 {[%clk 0:02:07.2]} 16... Kf8 {[%clk
0:01:16.3]} 17. Nb5 {[%clk 0:01:54]} 17... Ba6 {[%clk 0:01:14.5]} 18. Qa4 {[%clk
0:01:38.3]} 18... Bb7 {[%clk 0:01:13]} 19. Nd6 {[%clk 0:01:34.8]} 19... Bc6
{[%clk 0:01:12.6]} 20. Qa3 {[%clk 0:01:34.9]} 20... Kg8 {[%clk 0:01:11]} 21.
Rac1 {[%clk 0:01:33.2]} 21... h4 {[%clk 0:01:06.7]} 22. Be4 {[%clk 0:01:24.6]}
22... g3 {[%clk 0:01:06]} 23. fxg3 {[%clk 0:01:23]} 23... Qe7 {[%clk 0:00:44.3]}
24. Qf3 {[%clk 0:01:18.5]} 24... f5 {[%clk 0:00:40.4]} 25. Nxf5 {[%clk
0:01:13.7]} 25... Qf6 {[%clk 0:00:29.7]} 1-0

[Event "*** SCC Grand Prix: Titled Tuesday Blitz"]
[Site "Chess.com"]
[Date "2020.06.02"]
[Round "4"]
[White "Slovak_fighter2000"]
[Black "DrRiebert"]
[Result "0-1"]
[WhiteElo "2439"]
[BlackElo "2304"]
[TimeControl "180+1"]
[EndTime "10:37:59 PDT"]
[Termination "DrRiebert won by resignation"]

1. d4 {[%clk 0:03:00.9]} 1... d5 {[%clk 0:02:57.4]} 2. Nf3 {[%clk 0:02:59.4]}
2... Nf6 {[%clk 0:02:57.7]} 3. Bf4 {[%clk 0:02:59.9]} 3... c5 {[%clk 0:02:57.8]}
4. e3 {[%clk 0:03:00.2]} 4... Nc6 {[%clk 0:02:57.7]} 5. Nbd2 {[%clk 0:03:00.6]}
5... Qb6 {[%clk 0:02:45.2]} 6. dxc5 {[%clk 0:02:58.4]} 6... Qxb2 {[%clk
0:02:41.4]} 7. Rb1 {[%clk 0:02:57.4]} 7... Qc3 {[%clk 0:02:39.9]} 8. Bb5 {[%clk
0:02:56.5]} 8... Bd7 {[%clk 0:02:34.1]} 9. Rb3 {[%clk 0:02:47.7]} 9... Qxc5
{[%clk 0:02:32.6]} 10. c4 {[%clk 0:02:45.1]} 10... a6 {[%clk 0:02:16]} 11. Bxc6
{[%clk 0:02:28.8]} 11... Bxc6 {[%clk 0:02:15.2]} 12. cxd5 {[%clk 0:02:21.2]}
12... Nxd5 {[%clk 0:02:16.1]} 13. Bg3 {[%clk 0:02:13.5]} 13... Ba4 {[%clk
0:02:04.5]} 14. O-O {[%clk 0:02:08.6]} 14... Nf6 {[%clk 0:02:03.4]} 15. Qb1
{[%clk 0:01:54.8]} 15... Bxb3 {[%clk 0:01:56.4]} 16. Nxb3 {[%clk 0:01:55.7]}
16... Qb6 {[%clk 0:01:48.1]} 17. Rc1 {[%clk 0:01:48.8]} 17... e6 {[%clk
0:01:48]} 18. Bc7 {[%clk 0:01:44.5]} 18... Qb4 {[%clk 0:01:47]} 19. Ne5 {[%clk
0:01:31.9]} 19... b5 {[%clk 0:01:41.8]} 20. Qc2 {[%clk 0:01:25.1]} 20... Qe4
{[%clk 0:01:32.8]} 21. Qd2 {[%clk 0:01:15.1]} 21... Be7 {[%clk 0:01:27.2]} 22.
Bd6 {[%clk 0:00:44.6]} 22... Rd8 {[%clk 0:01:22.6]} 23. Rc6 {[%clk 0:00:23.6]}
23... Bxd6 {[%clk 0:01:15.4]} 24. Rxd6 {[%clk 0:00:24.5]} 24... Rxd6 {[%clk
0:01:12.8]} 0-1

[Event "*** SCC Grand Prix: Titled Tuesday Blitz"]
[Site "Chess.com"]
[Date "2020.06.02"]
[Round "4"]
[White "Chuchofrio1"]
[Black "Omk124"]
[Result "1-0"]
[WhiteElo "2277"]
[BlackElo "2433"]
[TimeControl "180+1"]
[EndTime "10:37:59 PDT"]
[Termination "Chuchofrio1 won by resignation"]

1. d4 {[%clk 0:03:00.9]} 1... Nf6 {[%clk 0:03:00]} 2. c4 {[%clk 0:03:01.3]} 2...
g6 {[%clk 0:03:00.2]} 3. Nc3 {[%clk 0:03:01.8]} 3... d5 {[%clk 0:03:00.2]} 4.
cxd5 {[%clk 0:03:01.7]} 4... Nxd5 {[%clk 0:03:01.1]} 5. Bd2 {[%clk 0:03:01.7]}
5... Bg7 {[%clk 0:02:59.7]} 6. e4 {[%clk 0:03:00.8]} 6... Nxc3 {[%clk
0:02:57.9]} 7. Bxc3 {[%clk 0:03:00.7]} 7... O-O {[%clk 0:02:58.4]} 8. Qd2 {[%clk
0:03:00.7]} 8... Nc6 {[%clk 0:02:53.2]} 9. d5 {[%clk 0:02:54.7]} 9... Ne5 {[%clk
0:02:51.3]} 10. f4 {[%clk 0:02:51.3]} 10... Ng4 {[%clk 0:02:49.1]} 11. Nf3
{[%clk 0:02:45.7]} 11... e6 {[%clk 0:02:42.6]} 12. Bc4 {[%clk 0:02:36.4]} 12...
exd5 {[%clk 0:02:40.9]} 13. Bxg7 {[%clk 0:02:31.7]} 13... Kxg7 {[%clk
0:02:38.6]} 14. Bxd5 {[%clk 0:02:29.9]} 14... c6 {[%clk 0:02:38.1]} 15. Bb3
{[%clk 0:02:22.6]} 15... Qe7 {[%clk 0:02:29]} 16. Qd4+ {[%clk 0:02:06.9]} 16...
Kg8 {[%clk 0:02:28.9]} 17. O-O {[%clk 0:02:05.9]} 17... Bd7 {[%clk 0:02:25.1]}
18. h3 {[%clk 0:01:53.7]} 18... Nf6 {[%clk 0:02:16.5]} 19. e5 {[%clk 0:01:46.6]}
19... Nh5 {[%clk 0:02:16.6]} 20. Rfe1 {[%clk 0:01:43.3]} 20... c5 {[%clk
0:02:15.1]} 21. Qe3 {[%clk 0:01:39.1]} 21... Bc6 {[%clk 0:02:14.7]} 22. Ng5
{[%clk 0:01:34.6]} 22... Rad8 {[%clk 0:01:35.2]} 23. Rad1 {[%clk 0:01:30.7]}
23... Ng7 {[%clk 0:01:31.2]} 24. Rxd8 {[%clk 0:01:28.5]} 24... Qxd8 {[%clk
0:01:26.5]} 25. Qxc5 {[%clk 0:01:25.1]} 25... h6 {[%clk 0:01:24.1]} 26. Rd1
{[%clk 0:01:13.2]} 26... Qc8 {[%clk 0:01:18.4]} 27. Nxf7 {[%clk 0:01:05.5]}
27... Rxf7 {[%clk 0:01:18.3]} 28. Qe7 {[%clk 0:00:56.7]} 28... Be8 {[%clk
0:01:02.4]} 29. Bxf7+ {[%clk 0:00:54.3]} 29... Bxf7 {[%clk 0:01:02.2]} 30. Rd8+
{[%clk 0:00:53.5]} 1-0

[Event "*** SCC Grand Prix: Titled Tuesday Blitz"]
[Site "Chess.com"]
[Date "2020.06.02"]
[Round "4"]
[White "CaspiIsrael"]
[Black "mishikomchedlishvili"]
[Result "0-1"]
[WhiteElo "2590"]
[BlackElo "2783"]
[TimeControl "180+1"]
[EndTime "10:38:01 PDT"]
[Termination "mishikomchedlishvili won by resignation"]

1. e4 {[%clk 0:03:00.9]} 1... c5 {[%clk 0:03:00]} 2. Nf3 {[%clk 0:03:00.4]} 2...
e6 {[%clk 0:03:00.3]} 3. d4 {[%clk 0:03:00.7]} 3... cxd4 {[%clk 0:03:00.6]} 4.
Nxd4 {[%clk 0:03:01.6]} 4... Nf6 {[%clk 0:03:00.2]} 5. Nc3 {[%clk 0:03:01.8]}
5... d6 {[%clk 0:03:00.5]} 6. Be3 {[%clk 0:03:01.4]} 6... Be7 {[%clk 0:02:59.6]}
7. f3 {[%clk 0:03:01]} 7... h5 {[%clk 0:02:58.7]} 8. Qd2 {[%clk 0:03:00.3]} 8...
a6 {[%clk 0:02:58.9]} 9. O-O-O {[%clk 0:02:58.9]} 9... b5 {[%clk 0:02:58.4]} 10.
Kb1 {[%clk 0:02:53.9]} 10... Bb7 {[%clk 0:02:53.6]} 11. Bd3 {[%clk 0:02:54]}
11... Nbd7 {[%clk 0:02:53]} 12. g3 {[%clk 0:02:50.6]} 12... Rc8 {[%clk
0:02:44.8]} 13. h3 {[%clk 0:02:50.5]} 13... b4 {[%clk 0:02:33.8]} 14. Nce2
{[%clk 0:02:50]} 14... d5 {[%clk 0:02:33]} 15. exd5 {[%clk 0:02:48.2]} 15...
Nxd5 {[%clk 0:02:31.6]} 16. Nf4 {[%clk 0:02:11.1]} 16... Nc5 {[%clk 0:01:34.9]}
17. Nxd5 {[%clk 0:02:06.9]} 17... Bxd5 {[%clk 0:01:34.7]} 18. g4 {[%clk
0:01:55.9]} 18... h4 {[%clk 0:01:31.3]} 19. Rhe1 {[%clk 0:01:54.8]} 19... Nxd3
{[%clk 0:01:26.3]} 20. Qxd3 {[%clk 0:01:55]} 20... O-O {[%clk 0:01:26.2]} 21.
Nf5 {[%clk 0:01:49.1]} 21... Bf6 {[%clk 0:01:25.2]} 22. Bd4 {[%clk 0:01:37.1]}
22... Bc4 {[%clk 0:01:00.7]} 23. Qe3 {[%clk 0:00:59.9]} 23... exf5 {[%clk
0:01:00.5]} 24. Bc5 {[%clk 0:01:00.3]} 24... Qa5 {[%clk 0:00:59]} 25. Bxf8
{[%clk 0:00:52.1]} 25... Qxa2+ {[%clk 0:00:58.5]} 26. Kc1 {[%clk 0:00:52.4]}
26... Qxb2+ {[%clk 0:00:58.5]} 27. Kd2 {[%clk 0:00:52.8]} 27... Bc3+ {[%clk
0:00:57.8]} 28. Qxc3 {[%clk 0:00:52]} 28... Qxc3+ {[%clk 0:00:57.3]} 29. Kc1
{[%clk 0:00:52.4]} 29... Kxf8 {[%clk 0:00:53.6]} 0-1